bitfinex/quotes_BTCUSD_20250124
["timestamp","ask_amount","ask_price","bid_price","bid_amount"]
[1737690478559,0.006,104070.0,104060.0,0.24118759]
[1737690478770,0.006,104070.0,104060.0,0.27285058]
[1737690479411,0.006,104070.0,104060.0,0.35615058]
[1737690480241,0.005,104070.0,104060.0,0.35615058]
[1737690480662,0.005,104070.0,104060.0,0.35815058]
[1737690480921,0.00029862,104090.0,104060.0,0.26205258]
[1737690481158,0.09636962,104090.0,104060.0,0.26305258]
[1737690481372,0.09636962,104090.0,104070.0,0.15]
[1737690481577,0.39480689,104090.0,104070.0,0.15]
[1737690481779,0.01792948,104080.0,104070.0,0.15]
[1737690482947,0.00029862,104090.0,104070.0,1.02254256]
[1737690483121,0.00029862,104090.0,104080.0,0.09734729]
[1737690483530,0.00029862,104090.0,104070.0,0.7388]
[1737690483737,0.00029862,104090.0,104080.0,0.0763]
[1737690484408,0.00029862,104090.0,104080.0,0.07621156]
[1737690484615,0.20366389,104090.0,104080.0,0.07621156]
[1737690484796,0.40080489,104090.0,104070.0,0.7388]
[1737690485093,0.00529862,104090.0,104070.0,0.7388]
[1737690485370,0.01791835,104080.0,104070.0,0.81385801]
[1737690486364,0.48766162,104090.0,104070.0,0.12375801]
[1737690486578,0.10336962,104090.0,104070.0,0.12375801]
[1737690486788,0.00729862,104090.0,104070.0,0.12375801]
[1737690487011,0.00029862,104090.0,104070.0,0.12375801]
[1737690487169,0.00029862,104090.0,104080.0,0.0766]
[1737690487369,0.00029862,104090.0,104080.0,0.25647053]
[1737690488431,0.00229862,104090.0,104080.0,0.25647053]
[1737690489687,0.00229862,104090.0,104080.0,0.2266]
[1737690491345,0.00229862,104090.0,104080.0,0.32394729]
[1737690492276,0.00229862,104090.0,104080.0,0.98132881]
[1737690492446,0.00229862,104090.0,104080.0,1.02882881]
[1737690492700,0.0201927,104090.0,104080.0,1.02882881]
[1737690492873,0.0201927,104090.0,104080.0,1.09851863]
[1737690493019,0.0181927,104090.0,104080.0,1.09851863]
[1737690493418,0.0191927,104090.0,104080.0,1.10151863]
[1737690493827,0.00129862,104090.0,104080.0,1.10151863]
[1737690494270,0.00129862,104090.0,104080.0,1.10451863]
[1737690497077,0.00129862,104090.0,104080.0,1.12358508]
[1737690497481,0.00129862,104090.0,104080.0,0.99428981]
[1737690497706,0.00129862,104090.0,104080.0,0.77853354]
[1737690497906,0.00129862,104090.0,104080.0,0.92853354]
[1737690499455,0.0191927,104090.0,104080.0,0.77853354]
[1737690499859,0.0181927,104090.0,104080.0,0.92553354]
[1737690500072,0.12448797,104090.0,104080.0,0.55308625]
[1737690500223,0.0181927,104090.0,104080.0,0.55508625]
[1737690500865,0.02889164,104090.0,104080.0,0.55508625]
[1737690501076,0.02889164,104090.0,104080.0,0.76059488]
[1737690501340,0.02889164,104090.0,104080.0,0.22058318]
[1737690501556,0.02889164,104090.0,104080.0,0.16507455]
[1737690501710,0.00029862,104090.0,104080.0,0.16507455]
[1737690508503,0.20266389,104090.0,104080.0,0.16507455]
[1737690508721,0.30001118,104090.0,104080.0,0.004]
[1737690508925,0.38221118,104090.0,104080.0,0.004]
[1737690509145,0.47955847,104090.0,104080.0,0.004]
[1737690509348,0.47955847,104090.0,104080.0,0.002]
[1737690509489,0.096079,104080.0,104070.0,0.15]
[1737690509690,0.20237427,104080.0,104070.0,0.1501423]
[1737690510357,0.29972156,104080.0,104070.0,0.1501423]
[1737690510548,0.47926885,104080.0,104070.0,0.0001423]
[1737690510938,0.49526885,104080.0,104070.0,0.0001423]
[1737690511781,0.60156412,104080.0,104070.0,0.0001423]
[1737690512014,0.65076412,104080.0,104070.0,0.0001423]
[1737690512214,0.67276412,104080.0,104070.0,0.0001423]
[1737690512417,0.66776412,104080.0,104070.0,0.0001423]
[1737690512624,0.66876412,104080.0,104070.0,0.0001423]
[1737690512823,0.68775159,104080.0,104070.0,0.0001423]
[1737690512937,0.70626383,104080.0,104070.0,0.0001423]
[1737690513340,0.70826383,104080.0,104070.0,0.0001423]
[1737690513545,0.72873146,104080.0,104070.0,0.0001423]
[1737690513747,0.74873146,104080.0,104070.0,0.0001423]
[1737690516325,0.72873146,104080.0,104070.0,0.0001423]
[1737690516532,0.72673146,104080.0,104070.0,0.0001423]
[1737690516881,0.73273146,104080.0,104070.0,0.0011423]
[1737690517095,0.72473146,104080.0,104070.0,3e-07]
[1737690517279,0.7652617,104080.0,104070.0,3e-07]
[1737690518273,0.214689,104070.0,104060.0,0.0001423]
[1737690518482,0.55509446,104070.0,104060.0,0.0001423]
[1737690518702,0.60569346,104070.0,104060.0,0.0001423]
[1737690518932,0.55509446,104070.0,104060.0,0.0001423]
[1737690519363,0.56409446,104070.0,104060.0,0.0001423]
[1737690519609,0.57309446,104070.0,104060.0,0.0001423]
[1737690520245,0.5846247,104070.0,104060.0,3e-07]
[1737690520479,0.72707199,104070.0,104060.0,3e-07]
[1737690520688,1.42707199,104070.0,104060.0,3e-07]
[1737690521310,0.252016,104040.0,104030.0,1e-06]
[1737690521456,0.229026,104030.0,104020.0,0.0021423]
[1737690521670,0.5380294,104030.0,104020.0,0.0021423]
[1737690522080,0.49466643,104030.0,104020.0,0.0021423]
[1737690522293,0.48466643,104030.0,104020.0,0.0021423]
[1737690522695,0.6099617,104030.0,104020.0,0.0021423]
[1737690522937,0.48376107,104030.0,104020.0,0.0021423]
[1737690523159,0.61005634,104030.0,104020.0,0.0021423]
[1737690523306,0.61905634,104030.0,104020.0,0.0021423]
[1737690523509,0.51276107,104030.0,104020.0,0.0021423]
[1737690523715,0.71640363,104030.0,104020.0,0.0021423]
[1737690524354,0.61010836,104030.0,104020.0,0.0021423]
[1737690524559,0.50276107,104030.0,104020.0,0.0021423]
[1737690524767,0.47123083,104030.0,104020.0,0.0021423]
[1737690524979,0.48123083,104030.0,104020.0,0.0021423]
[1737690525297,0.50276107,104030.0,104020.0,0.0021423]
[1737690525511,0.60905634,104030.0,104020.0,0.0021423]
[1737690525690,0.52350989,104030.0,104020.0,0.0021423]
[1737690526089,0.50350989,104030.0,104020.0,0.0021423]
[1737690526296,0.52350989,104030.0,104020.0,0.0021423]
[1737690526699,0.51350989,104030.0,104020.0,0.0021423]
[1737690526906,0.32861202,104030.0,104020.0,0.0021423]
[1737690527121,0.3178632,104030.0,104020.0,0.0021423]
[1737690528291,0.11422064,104030.0,104020.0,0.0021423]
[1737690528549,0.01809464,104030.0,104020.0,0.0781423]
[1737690528791,0.01809464,104030.0,104020.0,0.29877072]
[1737690529313,0.00909464,104030.0,104020.0,0.29877072]
[1737690529507,0.10622064,104030.0,104020.0,0.2759423]
[1737690529957,9.464e-05,104030.0,104020.0,0.2759423]
[1737690530432,0.09622064,104030.0,104020.0,0.2759423]
[1737690530670,0.01792143,104030.0,104020.0,0.2759423]
[1737690530887,0.11504743,104030.0,104020.0,0.2759423]
[1737690531103,0.01892143,104030.0,104020.0,0.2759423]
[1737690531314,0.01892143,104030.0,104020.0,0.28680462]
[1737690531535,0.01892143,104030.0,104020.0,0.28880462]
[1737690531754,0.2213427,104030.0,104020.0,0.2779423]
[1737690532002,0.2213427,104030.0,104020.0,0.1259423]
[1737690532304,0.2213427,104030.0,104020.0,0.1269423]
[1737690532510,0.2213427,104030.0,104020.0,0.0031423]
[1737690532717,0.31868999,104030.0,104020.0,0.0031423]
[1737690532929,0.3008632,104030.0,104020.0,0.0031423]
[1737690533152,0.2998632,104030.0,104020.0,0.0031423]
[1737690533354,0.3048632,104030.0,104020.0,0.0021423]
[1737690533562,0.19886676,104030.0,104020.0,0.0021423]
[1737690534411,0.00539347,104030.0,104020.0,0.0021423]
[1737690534791,0.10151947,104030.0,104020.0,0.0021423]
[1737690535002,0.11168874,104030.0,104020.0,0.0021423]
[1737690535210,0.00539347,104030.0,104020.0,0.0021423]
[1737690535941,0.00539347,104030.0,104020.0,0.0779423]
[1737690536173,0.00539347,104030.0,104020.0,0.08684864]
[1737690536372,0.00539347,104030.0,104020.0,0.03402592]
[1737690536575,0.00539347,104030.0,104020.0,0.02511958]
[1737690540366,0.00539347,104030.0,104010.0,0.16112113]
[1737690540569,0.40007074,104030.0,104010.0,0.16112113]
[1737690540776,0.29377547,104030.0,104010.0,0.16112113]
[1737690540979,0.00539347,104030.0,104010.0,0.25846842]
[1737690541190,0.00539347,104030.0,104010.0,0.35085948]
[1737690541796,0.00539347,104030.0,104010.0,0.35185948]
[1737690542384,0.00039347,104030.0,104010.0,0.35185948]
[1737690542753,0.00139347,104030.0,104010.0,0.35185948]
[1737690542954,0.00139347,104030.0,104010.0,0.89195948]
[1737690543797,0.00139347,104030.0,104020.0,0.1293]
[1737690543976,0.00139347,104030.0,104020.0,0.30865677]
[1737690544596,0.00139347,104030.0,104020.0,0.2793]
[1737690544811,0.20381474,104030.0,104020.0,0.1978]
[1737690545036,0.20381474,104030.0,104020.0,0.15]
[1737690545446,0.39729603,104030.0,104010.0,0.62622113]
[1737690545656,0.39729603,104030.0,104010.0,0.5402419]
[1737690545657,0.29977756,104020.0,104010.0,0.5402419]
[1737690545862,0.36824706,104020.0,104010.0,0.0001419]
[1737690546293,0.55344233,104020.0,104010.0,0.0001419]
[1737690546502,0.58644233,104020.0,104010.0,0.0001419]
[1737690546708,0.66264678,104020.0,104010.0,0.0001419]
[1737690546916,0.60317728,104020.0,104010.0,0.0011419]
[1737690547743,0.63470752,104020.0,104010.0,0.0011419]
[1737690547958,0.64470752,104020.0,104010.0,0.0011419]
[1737690548174,0.149144,104010.0,104000.0,0.0001422]
[1737690548382,0.53688183,104010.0,104000.0,0.0001422]
[1737690548586,0.69656381,104010.0,104000.0,0.0001422]
[1737690548794,0.59921652,104010.0,104000.0,0.0001422]
[1737690549003,0.58921652,104010.0,104000.0,0.0001422]
[1737690549208,0.59921652,104010.0,104000.0,0.0001422]
[1737690549417,0.58921652,104010.0,104000.0,0.0001422]
[1737690549617,0.69556381,104010.0,104000.0,0.0001422]
[1737690550209,0.70056381,104010.0,104000.0,0.0001422]
[1737690550414,0.68056381,104010.0,104000.0,2e-07]
[1737690551031,0.58321652,104010.0,104000.0,2e-07]
[1737690551437,0.21148769,104000.0,103990.0,0.0153976]
[1737690551594,0.60052552,104000.0,103990.0,0.01530914]
[1737690551800,0.49423025,104000.0,103990.0,0.01530914]
[1737690552004,0.37889556,104000.0,103990.0,0.01530914]
[1737690552598,0.38789556,104000.0,103990.0,0.01530914]
[1737690552802,0.39289556,104000.0,103990.0,0.01530914]
[1737690553046,0.38389556,104000.0,103990.0,0.01530914]
[1737690553322,0.38789556,104000.0,103990.0,0.01530914]
[1737690553495,0.37889556,104000.0,103990.0,0.01530914]
[1737690553694,0.37889556,104000.0,103990.0,0.01522083]
[1737690554070,0.50924285,104000.0,103990.0,0.01522083]
[1737690554248,0.5300473,104000.0,103990.0,0.01522083]
[1737690554456,0.68687281,104000.0,103990.0,0.01522083]
[1737690554875,0.7154901,104000.0,103990.0,0.01522083]
[1737690555082,0.49284754,104000.0,103990.0,0.01522083]
[1737690555275,0.51184754,104000.0,103990.0,0.01522083]
[1737690555502,0.52084754,104000.0,103990.0,0.01522083]
[1737690556345,0.52084754,104000.0,103990.0,0.01536313]
[1737690556997,0.51084754,104000.0,103990.0,0.01536313]
[1737690557212,0.7244901,104000.0,103990.0,0.01536313]
[1737690557608,0.7144901,104000.0,103990.0,0.01536313]
[1737690558008,0.45851285,104000.0,103990.0,0.01536313]
[1737690558210,0.31779556,104000.0,103990.0,0.01536313]
[1737690558409,0.29979556,104000.0,103990.0,0.01536313]
[1737690558691,0.30879556,104000.0,103990.0,0.11152613]
[1737690558901,0.31779556,104000.0,103990.0,0.01536313]
[1737690559072,0.30879556,104000.0,103990.0,0.01536313]
[1737690559271,0.31779556,104000.0,103990.0,0.01536313]
[1737690559677,0.40614285,104000.0,103990.0,0.01536313]
[1737690559875,0.39714285,104000.0,103990.0,0.01536313]
[1737690560073,0.40414285,104000.0,103990.0,0.01536313]
[1737690560443,0.30679556,104000.0,103990.0,0.01536313]
[1737690561296,0.31579556,104000.0,103990.0,0.01536313]
[1737690561731,0.30679556,104000.0,103990.0,0.01536313]
[1737690562047,0.30479556,104000.0,103990.0,0.01536313]
[1737690562261,0.31379556,104000.0,103990.0,0.01536313]
[1737690562466,0.51304285,104000.0,103990.0,0.01536313]
[1737690563247,0.41569556,104000.0,103990.0,0.01536313]
[1737690564031,0.40669556,104000.0,103990.0,0.01536313]
[1737690564239,0.40169556,104000.0,103990.0,0.01536313]
[1737690564394,0.30879556,104000.0,103990.0,0.01536313]
[1737690565024,0.32279556,104000.0,103990.0,0.01536313]
[1737690565257,0.64053812,104000.0,103990.0,0.01536313]
[1737690565456,0.64953812,104000.0,103990.0,0.01536313]
[1737690565717,0.53424285,104000.0,103990.0,0.01536313]
[1737690566084,0.64453812,104000.0,103990.0,0.01536313]
[1737690566289,0.52924285,104000.0,103990.0,0.01536313]
[1737690566493,0.53824285,104000.0,103990.0,0.01536313]
[1737690566698,0.64453812,104000.0,103990.0,0.01536313]
[1737690566903,0.66369784,104000.0,103990.0,0.01536313]
[1737690567113,0.55740257,104000.0,103990.0,0.01536313]
[1737690567354,0.67269784,104000.0,103990.0,0.01536313]
[1737690567524,0.56640257,104000.0,103990.0,0.01536313]
[1737690567745,0.7799887,104000.0,103990.0,0.01536313]
[1737690568300,0.85579529,104000.0,103990.0,0.01536313]
[1737690568521,0.129163,103990.0,103980.0,0.0001421]
[1737690568727,0.39645099,103990.0,103980.0,0.0001421]
[1737690568952,0.4275057,103990.0,103980.0,1e-07]
[1737690569149,0.5104057,103990.0,103980.0,1e-07]
[1737690569402,0.54127521,103990.0,103980.0,1e-07]
[1737690569603,0.6386225,103990.0,103980.0,1e-07]
[1737690569838,0.6386225,103990.0,103980.0,0.00049455]
[1737690569839,0.6476225,103990.0,103980.0,0.00049455]
[1737690570967,1.23527521,103990.0,103980.0,5.5e-07]
[1737690571790,1.22127521,103990.0,103980.0,5.5e-07]
[1737690572237,1.23827521,103990.0,103980.0,5.5e-07]
[1737690572437,1.22927521,103990.0,103980.0,5.5e-07]
[1737690572689,1.23927521,103990.0,103980.0,5.5e-07]
[1737690572856,1.23294163,103990.0,103980.0,5.5e-07]
[1737690573068,1.29376822,103990.0,103980.0,5.5e-07]
[1737690573418,1.25489871,103990.0,103980.0,5.5e-07]
[1737690573630,1.26389871,103990.0,103980.0,5.5e-07]
[1737690574244,1.27761871,103990.0,103980.0,5.5e-07]
[1737690575720,1.18435099,103990.0,103980.0,5.5e-07]
[1737690576605,0.45435099,103990.0,103980.0,5.5e-07]
[1737690576805,0.37145099,103990.0,103980.0,5.5e-07]
[1737690577008,0.39445099,103990.0,103980.0,5.5e-07]
[1737690577209,0.41445099,103990.0,103980.0,5.5e-07]
[1737690577440,0.42445099,103990.0,103980.0,5.5e-07]
[1737690578915,0.40445099,103990.0,103980.0,5.5e-07]
[1737690579340,0.37145099,103990.0,103980.0,5.5e-07]
[1737690580162,0.37145099,103990.0,103980.0,0.00014295]
[1737690580582,0.37175003,103990.0,103980.0,0.00014295]
[1737690581235,0.36275003,103990.0,103980.0,0.00014295]
[1737690581410,0.36275003,103990.0,103980.0,0.08004295]
[1737690581627,0.37175003,103990.0,103980.0,0.08004295]
[1737690582234,0.36275003,103990.0,103980.0,0.08004295]
[1737690582631,0.37175003,103990.0,103980.0,0.08804725]
[1737690582889,0.21180933,103990.0,103980.0,0.13504725]
[1737690583109,0.01829904,103990.0,103980.0,0.13504725]
[1737690583315,0.11446204,103990.0,103980.0,0.13504725]
[1737690583827,0.10546204,103990.0,103980.0,0.13504725]
[1737690584605,0.10546204,103990.0,103980.0,0.12704295]
[1737690584851,0.10246204,103990.0,103980.0,0.12704295]
[1737690585118,0.27140274,103990.0,103980.0,0.12704295]
[1737690588002,0.11146204,103990.0,103980.0,0.12704295]
[1737690588746,0.01529904,103990.0,103980.0,0.12704295]
[1737690588996,0.11146204,103990.0,103980.0,0.12704295]
[1737690589251,0.01529904,103990.0,103980.0,0.14078298]
[1737690589511,0.01529904,103990.0,103980.0,0.23813027]
[1737690589759,0.00029904,104000.0,103980.0,0.27117097]
[1737690590036,0.00029904,104000.0,103990.0,0.22814729]
[1737690592161,0.00029904,104000.0,103990.0,0.1308]
[1737690592400,0.20795047,104000.0,103990.0,0.1308]
[1737690592652,0.30529776,104000.0,103980.0,0.08244295]
[1737690592928,0.20266143,103990.0,103980.0,0.08244295]
[1737690593460,0.30000872,103990.0,103980.0,0.00014295]
[1737690594622,0.30000872,103990.0,103980.0,0.00114295]
[1737690594840,0.30400872,103990.0,103980.0,0.00114295]
[1737690595286,0.100163,103990.0,103980.0,0.00114295]
[1737690595486,0.20666143,103990.0,103980.0,0.00114295]
[1737690595880,0.100163,103990.0,103980.0,0.00114295]
[1737690596012,0.100163,103990.0,103980.0,0.00014295]
[1737690596211,0.100163,103990.0,103980.0,0.00114295]
[1737690597649,0.26003757,103990.0,103980.0,0.00114295]
[1737690598133,0.45473215,103990.0,103980.0,0.00114295]
[1737690598274,0.35738486,103990.0,103980.0,0.00114295]
[1737690598475,0.19751029,103990.0,103980.0,0.00114295]
[1737690599054,0.35738486,103990.0,103980.0,0.00114295]
[1737690601705,0.43878486,103990.0,103980.0,0.00114295]
[1737690601912,0.19751029,103990.0,103980.0,0.00114295]
[1737690602925,0.19751029,103990.0,103980.0,0.00014295]
[1737690603149,0.19351029,103990.0,103980.0,0.00014295]
[1737690603317,0.19851029,103990.0,103980.0,0.00114295]
[1737690603839,0.19351029,103990.0,103980.0,0.00014295]
[1737690604046,0.106163,103990.0,103980.0,0.00014295]
[1737690604388,0.097163,103990.0,103980.0,0.00014295]
[1737690604567,0.25703757,103990.0,103980.0,0.00014295]
[1737690604807,0.26303757,103990.0,103980.0,0.00014295]
[1737690605003,0.10346162,103990.0,103980.0,0.00014295]
[1737690605396,0.10246162,103990.0,103980.0,0.00014295]
[1737690605645,0.00929862,103990.0,103980.0,0.00014295]
[1737690606060,0.10546162,103990.0,103980.0,0.00014295]
[1737690606238,0.10246162,103990.0,103980.0,0.00014295]
[1737690606394,0.10546162,103990.0,103980.0,0.00014295]
[1737690606598,0.00929862,103990.0,103980.0,0.00014295]
[1737690607222,0.10546162,103990.0,103980.0,0.00014295]
[1737690607452,0.00929862,103990.0,103980.0,0.00014295]
[1737690608081,0.00929862,103990.0,103980.0,0.17659024]
[1737690608422,0.00929862,103990.0,103980.0,0.19986633]
[1737690609360,0.00929862,103990.0,103980.0,0.24486633]
[1737690609791,0.00929862,103990.0,103980.0,0.12424295]
[1737690610204,0.00929862,103990.0,103980.0,0.22159024]
[1737690613092,0.00929862,103990.0,103980.0,0.37159024]
[1737690615797,0.00929862,103990.0,103980.0,0.47808602]
[1737690616411,0.00929862,103990.0,103980.0,0.50108602]
[1737690616620,0.00929862,103990.0,103980.0,0.67171746]
[1737690616829,0.00029904,104000.0,103990.0,0.40379578]
[1737690617027,0.00029904,104000.0,103990.0,0.51114307]
[1737690617245,0.00029904,104000.0,103990.0,0.50114307]
[1737690617449,0.00029904,104000.0,103990.0,0.55978524]
[1737690617578,0.00029904,104000.0,103990.0,0.56978524]
[1737690618174,0.00029904,104000.0,103990.0,0.55978524]
[1737690618420,0.00029904,104000.0,103990.0,0.43328946]
[1737690619028,0.00029904,104000.0,103990.0,0.53978524]
[1737690619810,0.00029904,104000.0,103990.0,0.57278524]
[1737690620016,0.00029904,104000.0,103990.0,0.57478524]
[1737690622382,0.00029904,104000.0,103990.0,0.56478524]
[1737690622584,0.00029904,104000.0,103990.0,0.43528946]
[1737690623024,0.00029904,104000.0,103990.0,0.44556187]
[1737690623655,0.00029904,104000.0,103990.0,0.06027241]
[1737690623878,0.00029904,104000.0,103990.0,0.1576197]
[1737690624101,0.00029904,104000.0,103990.0,0.3076197]
[1737690624551,0.00029904,104000.0,103990.0,0.16527241]
[1737690624781,0.00029904,104000.0,103990.0,0.01327241]
[1737690624985,0.00029904,104000.0,103990.0,0.16427241]
[1737690625158,0.00029904,104000.0,103990.0,0.23002751]
[1737690626205,0.09645204,104000.0,103990.0,0.01127241]
[1737690626409,0.00029904,104000.0,103990.0,0.01127241]
[1737690626616,0.00029904,104000.0,103990.0,0.01227241]
[1737690626854,0.20294782,104000.0,103990.0,0.002]
[1737690627032,0.30029511,104000.0,103990.0,0.0021422]
[1737690627907,0.30029511,104000.0,103990.0,0.0011422]
[1737690628130,0.30029511,104000.0,103990.0,0.0001422]
[1737690628335,0.38795425,104000.0,103990.0,0.0001422]
[1737690628520,0.46445425,104000.0,103990.0,0.0001422]
[1737690628924,0.40179511,104000.0,103990.0,0.0001422]
[1737690629690,0.61512431,104000.0,103990.0,0.0001422]
[1737690629897,0.61612431,104000.0,103990.0,0.0001422]
[1737690630269,0.61412431,104000.0,103990.0,0.0001422]
[1737690630472,0.61912431,104000.0,103990.0,0.0001422]
[1737690632585,0.7164716,104000.0,103990.0,0.0001422]
[1737690632789,0.7264716,104000.0,103990.0,0.0001422]
[1737690632950,0.62912431,104000.0,103990.0,0.0001422]
[1737690633377,0.64857957,104000.0,103990.0,0.0001422]
[1737690633876,0.72063975,104000.0,103990.0,0.0001422]
[1737690634054,0.72963975,104000.0,103990.0,0.0011422]
[1737690634186,0.72563975,104000.0,103990.0,0.0011422]
[1737690634393,0.043,103990.0,103980.0,0.00014295]
[1737690634598,0.55778296,103990.0,103980.0,0.00010295]
[1737690636267,0.53672278,103990.0,103980.0,0.00010295]
[1737690636860,0.54572278,103990.0,103980.0,0.00010295]
[1737690637098,0.57578296,103990.0,103980.0,0.00010295]
[1737690637311,0.67313025,103990.0,103980.0,9.5e-07]
[1737690637521,0.129181,103970.0,103960.0,0.0001423]
[1737690637728,0.69525327,103970.0,103960.0,0.00029004]
[1737690637934,0.72631345,103970.0,103960.0,0.00029004]
[1737690638142,0.77967642,103970.0,103960.0,0.00029004]
[1737690638975,0.81192379,103970.0,103960.0,0.00029004]
[1737690639400,0.80192379,103970.0,103960.0,0.00029004]
[1737690639882,0.80992379,103970.0,103960.0,0.00029004]
[1737690640100,0.81892379,103970.0,103960.0,0.00029004]
[1737690640312,0.81092379,103970.0,103960.0,0.00029004]
[1737690640579,0.82892379,103970.0,103960.0,0.00029004]
[1737690641980,0.84800772,103970.0,103960.0,0.00029004]
[1737690642399,0.93414858,103970.0,103960.0,0.00029004]
[1737690642612,0.94425354,103970.0,103960.0,0.00029004]
[1737690642986,0.89089057,103970.0,103960.0,0.00011327]
[1737690643395,0.68573071,103970.0,103960.0,0.00011327]
[1737690644091,0.66573071,103970.0,103960.0,0.00011327]
[1737690644296,0.31677411,103970.0,103960.0,0.00011327]
[1737690644497,0.4766866,103970.0,103960.0,0.00011327]
[1737690644928,0.46658164,103970.0,103960.0,0.00011327]
[1737690645495,0.38044078,103970.0,103960.0,0.00011327]
[1737690646145,0.37144078,103970.0,103960.0,0.00011327]
[1737690646347,0.37744078,103970.0,103960.0,0.00011327]
[1737690646552,0.35944078,103970.0,103960.0,0.00011327]
[1737690646774,0.36844078,103970.0,103960.0,0.00111327]
[1737690646952,0.36244078,103970.0,103960.0,0.00111327]
[1737690647294,0.36644078,103970.0,103960.0,0.00111327]
[1737690648649,0.20652829,103970.0,103960.0,0.00111327]
[1737690649277,0.46378807,103970.0,103960.0,0.00111327]
[1737690649484,0.36644078,103970.0,103960.0,0.00111327]
[1737690650343,0.36644078,103970.0,103960.0,0.00125557]
[1737690650761,0.20652829,103970.0,103960.0,0.00125557]
[1737690651174,0.20682712,103970.0,103960.0,0.00125557]
[1737690651799,0.31345035,103970.0,103960.0,0.00125557]
[1737690652650,0.20682712,103970.0,103960.0,0.00125557]
[1737690653274,0.10947983,103970.0,103960.0,0.00125557]
[1737690654096,0.10947983,103970.0,103960.0,0.08255557]
[1737690655127,0.35480202,103970.0,103960.0,0.00125557]
[1737690655334,0.31345035,103970.0,103960.0,0.00125557]
[1737690658011,0.10947983,103970.0,103960.0,0.00125557]
[1737690658240,0.1009,103960.0,103910.0,0.0197401]
[1737690658448,0.30947346,103920.0,103910.0,0.0002906]
[1737690658678,0.29994264,103920.0,103910.0,0.0002906]
[1737690658858,0.481127,103930.0,103910.0,0.0812906]
[1737690659099,0.481075,103940.0,103910.0,0.09421389]
[1737690659301,0.09622,103930.0,103910.0,0.09421389]
[1737690659915,0.096216,103940.0,103910.0,0.19156118]
[1737690660065,0.288636,103940.0,103910.0,0.19156118]
[1737690660270,0.001,103940.0,103910.0,0.19156118]
[1737690660473,0.001,103940.0,103920.0,0.14614729]
[1737690660671,0.001,103940.0,103930.0,0.0776]
[1737690660875,0.001,103940.0,103930.0,0.17494729]
[1737690661218,0.001,103940.0,103930.0,0.0776]
[1737690661399,0.20483223,103940.0,103930.0,0.0776]
[1737690661627,0.097209,103940.0,103930.0,0.0776]
[1737690661837,0.096209,103940.0,103930.0,0.09264361]
[1737690662051,0.288629,103940.0,103920.0,0.0488]
[1737690662257,0.20284123,103930.0,103920.0,0.0488]
[1737690662517,0.29903123,103950.0,103920.0,0.0488]
[1737690662733,0.68499552,103950.0,103920.0,0.0488]
[1737690662940,0.57837229,103950.0,103930.0,0.001]
[1737690663146,0.097209,103940.0,103930.0,0.001]
[1737690663360,0.097209,103940.0,103920.0,0.06250182]
[1737690663549,0.096209,103940.0,103920.0,0.06250182]
[1737690663758,0.288613,103950.0,103920.0,0.06250182]
[1737690663961,0.28885183,103970.0,103930.0,0.18044729]
[1737690664164,0.57857212,103970.0,103930.0,0.2047422]
[1737690664373,0.001,103940.0,103930.0,0.2047422]
[1737690664621,0.001,103940.0,103930.0,0.2540422]
[1737690664891,0.00029883,103970.0,103930.0,0.34092294]
[1737690665111,0.00029883,103970.0,103950.0,0.0493]
[1737690665335,0.00029883,103970.0,103950.0,0.17529536]
[1737690665539,0.00029883,103970.0,103960.0,0.0772]
[1737690666460,0.00029883,103970.0,103960.0,0.0773483]
[1737690666985,0.00129883,103970.0,103960.0,0.0773483]
[1737690667758,0.09747983,103970.0,103960.0,0.0773483]
[1737690668193,0.00129883,103970.0,103960.0,0.0773483]
[1737690668397,0.09747983,103970.0,103960.0,0.0773483]
[1737690668600,0.09747983,103970.0,103960.0,0.0001483]
[1737690669227,0.00129883,103970.0,103960.0,0.0001483]
[1737690670721,0.00129883,103970.0,103960.0,0.18039559]
[1737690670931,0.00129883,103970.0,103960.0,0.20437656]
[1737690671135,0.00129883,103970.0,103960.0,0.10702927]
[1737690672329,0.00029883,103970.0,103960.0,0.0830483]
[1737690672543,0.00029883,103970.0,103960.0,0.0870483]
[1737690672939,0.00029883,103970.0,103960.0,0.0850483]
[1737690673144,0.09647983,103970.0,103960.0,0.0021483]
[1737690673475,0.09647983,103970.0,103960.0,0.0041483]
[1737690674080,0.00029883,103970.0,103960.0,0.0041483]
[1737690674888,0.09647983,103970.0,103960.0,0.0041483]
[1737690676242,0.00029883,103970.0,103960.0,0.0041483]
[1737690677191,0.00029883,103970.0,103960.0,0.17799559]
[1737690677400,0.00029883,103970.0,103960.0,0.20173656]
[1737690678752,0.00029883,103970.0,103960.0,0.10438927]
[1737690681280,0.00029883,103970.0,103960.0,0.0806483]
[1737690681933,0.09647983,103970.0,103960.0,0.0041483]
[1737690682135,0.00029883,103970.0,103960.0,0.0041483]
[1737690682708,0.09647983,103970.0,103960.0,0.0041483]
[1737690682929,0.00029883,103970.0,103960.0,0.0041483]
[1737690683124,0.00029883,103970.0,103960.0,0.0021483]
[1737690683329,0.00029883,103970.0,103960.0,0.0001483]
[1737690683330,0.35380786,103970.0,103960.0,0.0001483]
[1737690683668,0.52629555,103970.0,103960.0,0.0021483]
[1737690683859,0.47398378,103970.0,103960.0,0.0021483]
[1737690684102,0.38089609,103970.0,103960.0,0.0021483]
[1737690684290,0.30149609,103970.0,103960.0,0.0021483]
[1737690684495,0.2041488,103970.0,103960.0,0.0021483]
[1737690684697,0.00129883,103970.0,103960.0,0.0021483]
[1737690685212,0.2041488,103970.0,103960.0,0.0001483]
[1737690685414,0.00129883,103970.0,103960.0,0.0001483]
[1737690689638,0.09747983,103970.0,103960.0,0.0001483]
[1737690690100,0.00129883,103970.0,103960.0,0.0001483]
[1737690691430,0.25738116,103970.0,103960.0,0.0001483]
[1737690692223,0.09747983,103970.0,103960.0,0.0001483]
[1737690694634,0.25738116,103970.0,103960.0,0.0001483]
[1737690694993,0.09747983,103970.0,103960.0,0.0001483]
[1737690695205,0.00129883,103970.0,103960.0,0.0001483]
[1737690695604,0.00129883,103970.0,103960.0,0.1299483]
[1737690695964,0.00129883,103970.0,103960.0,0.24093093]
[1737690697043,0.00029883,103970.0,103960.0,0.24093093]
[1737690698216,0.16020016,103970.0,103960.0,0.0001483]
[1737690698423,0.25638116,103970.0,103960.0,0.0001483]
[1737690698647,0.25638116,103970.0,103960.0,0.0041483]
[1737690700260,0.00029883,103970.0,103960.0,0.0041483]
[1737690703025,0.09647983,103970.0,103960.0,0.0041483]
[1737690703265,0.00029883,103970.0,103960.0,0.0041483]
[1737690706046,0.25638116,103970.0,103960.0,0.0041483]
[1737690706984,0.35372845,103970.0,103960.0,0.0041483]
[1737690707172,0.43312845,103970.0,103960.0,0.0041483]
[1737690707781,0.28251405,103970.0,103960.0,0.0021483]
[1737690707987,0.28251405,103970.0,103960.0,0.0001483]
[1737690708210,0.18733305,103970.0,103960.0,0.0001483]
[1737690708415,0.17687983,103970.0,103960.0,0.0001483]
[1737690708823,0.28751405,103970.0,103960.0,0.0001483]
[1737690709108,0.46731835,103970.0,103960.0,0.0001483]
[1737690709521,0.46831835,103970.0,103960.0,0.0001483]
[1737690709722,0.37986134,103970.0,103960.0,0.0001483]